Workbook

Sheet Viljan tuotanto
A1: Vihreät ruudut ovat syöttöruutuja, syötä näihin tilasi tiedot
C4: Lohko | H4: Kylvömuokkaus, perinteinen | N4: Kylvölannoitus | U4: Kasvinsuojelu | Z4: Puinti | AF4: Perusmuokkaus
D5: Etäisyys tilasta km | E5: Ala ha | F5: Maalaji | H5: Äestyskertoja | J5: Äestys l/ha | K5: Matka l | L5: Lohkon kulutus | N5: Kylvetään | P5: Kylvö l/ha | Q5: Matka l | R5: Lohkon kulutus | U5: Ruiskutuskertoja | V5: Kulutus l/ha | W5: Matka l | X5: Lohkon kulutus | Z5: Sato | AB5: Kulutus l/ha | AC5: Matka l | AD5: Lohkon kulutus | AF5: Muokkaustapa | AH5: Maalaji | AJ5: Kulutus l/ha | AK5: =+AC5 -> Matka l | AL5: =+AD5 -> Lohkon kulutus
C6: Lohko 1 | D6: 0 | E6: 2.3 | G6: 1 | H6: 2 | J6: =+INDEX(Sheet2!$C$5:$C$7,G6)*H6 -> 9.2 | K6: =0.063*5*D6*2 -> 0 | L6: =+J6+K6 -> 9.2 | N6: =+IF(H6=0,0,1) -> 1 | O6: 3.7 | P6: =+O6 -> 3.7 | Q6: =0.063*(9*D6*2+0.6*E6) -> 0.08694 | R6: =+N6*P6*E6+Q6 -> 8.59694 | T6: 1.8 | U6: 1 | V6: =+T6 -> 1.8 | W6: =0.063*5*D6*2 -> 0 | X6: =+E6*V6*U6+W6 -> 4.14 | AA6: 3 | AB6: =+INDEX(Sheet2!$C$11:$C$13,AA6) -> 9 | AC6: =0.063*7*D6*2+3.5*E6*0.063 -> 0.50715 | AD6: =+AB6*E6+AC6 -> 21.20715 | AG6: 3 | AI6: 3 | AJ6: =+INDEX(Sheet2!$G$11:$I$13,'Viljan tuotanto'!AG6,'Viljan tuotanto'!AI6) -> 9.25 | AK6: =0.063*5*D6*2 -> 0 | AL6: =+AJ6*E6+AK6 -> 21.275
C7: Lohko 2 | D7: 2 | E7: 3.2 | G7: 1 | H7: 2 | J7: =+INDEX(Sheet2!$C$5:$C$7,G7)*H7 -> 9.2 | K7: =0.063*5*D7*2 -> 1.26 | L7: =+J7+K7 -> 10.46 | N7: 1 | O7: 3.7 | P7: 3.7 | Q7: =0.063*(9*D7*2+0.6*E7) -> 2.38896 | R7: =+N7*P7*E7+Q7 -> 14.22896 | T7: 1.8 | U7: 1 | V7: 1.8 | W7: =0.063*5*D7*2 -> 1.26 | X7: =+E7*V7*U7+W7 -> 7.02 | AA7: 1 | AB7: =+INDEX(Sheet2!$C$11:$C$13,AA7) -> 19 | AC7: =0.063*7*D7*2+3.5*E7*0.063 -> 2.4696 | AD7: =+AB7*E7+AC7 -> 63.2696 | AG7: 2 | AI7: 3 | AJ7: =+INDEX(Sheet2!$G$11:$I$13,'Viljan tuotanto'!AG7,'Viljan tuotanto'!AI7) -> 11 | AK7: =0.063*5*D7*2 -> 1.26 | AL7: =+AJ7*E7+AK7 -> 36.46
C8: Lohko 3 | D8: 2 | E8: 3.2 | G8: 1 | H8: 2 | J8: =+INDEX(Sheet2!$C$5:$C$7,G8)*H8 -> 9.2 | K8: 1.26 | L8: 10.46 | N8: 1 | O8: 3.7 | P8: 3.7 | Q8: 2.38896 | R8: 14.22896 | T8: 1.8 | U8: 1 | V8: 1.8 | W8: 1.26 | X8: 7.02 | AA8: 3 | AB8: =+INDEX(Sheet2!$C$11:$C$13,AA8) -> 9 | AC8: 2.4696 | AD8: 31.2696 | AG8: 3 | AI8: 3 | AJ8: =+INDEX(Sheet2!$G$11:$I$13,'Viljan tuotanto'!AG8,'Viljan tuotanto'!AI8) -> 9.25 | AK8: 1.26 | AL8: 30.86
C9: Lohko 4 | D9: 4 | E9: 5 | G9: 2 | H9: 2 | J9: =+INDEX(Sheet2!$C$5:$C$7,G9)*H9 -> 10.8 | K9: 2.52 | L9: 13.32 | N9: 1 | O9: 3.7 | P9: 3.7 | Q9: 4.725 | R9: 23.225 | T9: 1.8 | U9: 1 | V9: 1.8 | W9: 2.52 | X9: 11.52 | AA9: 1 | AB9: =+INDEX(Sheet2!$C$11:$C$13,AA9) -> 19 | AC9: 4.6305 | AD9: 99.6305 | AG9: 2 | AI9: 3 | AJ9: =+INDEX(Sheet2!$G$11:$I$13,'Viljan tuotanto'!AG9,'Viljan tuotanto'!AI9) -> 11 | AK9: 2.52 | AL9: 57.52
C10: Lohko 5 | D10: 1 | E10: 4.6 | G10: 1 | H10: 2 | J10: =+INDEX(Sheet2!$C$5:$C$7,G10)*H10 -> 9.2 | K10: 0.63 | L10: 9.83 | N10: 1 | O10: 3.7 | P10: 3.7 | Q10: 1.30788 | R10: 18.32788 | T10: 1.8 | U10: 1 | V10: 1.8 | W10: 0.63 | X10: 8.91 | AA10: 1 | AB10: =+INDEX(Sheet2!$C$11:$C$13,AA10) -> 19 | AC10: 1.8963 | AD10: 89.2963 | AG10: 1 | AI10: 3 | AJ10: =+INDEX(Sheet2!$G$11:$I$13,'Viljan tuotanto'!AG10,'Viljan tuotanto'!AI10) -> 30 | AK10: 0.63 | AL10: 138.63
C11: Lohko 6 | D11: 22 | E11: 3.6 | G11: 3 | H11: 2 | J11: =+INDEX(Sheet2!$C$5:$C$7,G11)*H11 -> 12.4 | K11: 13.86 | L11: 26.26 | N11: 1 | O11: 3.7 | P11: 3.7 | Q11: 25.08408 | R11: 38.40408 | T11: 1.8 | U11: 1 | V11: 1.8 | W11: 13.86 | X11: 20.34 | AA11: 2 | AB11: =+INDEX(Sheet2!$C$11:$C$13,AA11) -> 14 | AC11: 20.1978 | AD11: 70.5978 | AG11: 2 | AI11: 2 | AJ11: =+INDEX(Sheet2!$G$11:$I$13,'Viljan tuotanto'!AG11,'Viljan tuotanto'!AI11) -> 10 | AK11: 13.86 | AL11: 49.86
C12: Lohko 7 | D12: 2 | E12: 3 | G12: 2 | H12: 2 | J12: =+INDEX(Sheet2!$C$5:$C$7,G12)*H12 -> 10.8 | K12: 1.26 | L12: 12.06 | N12: 1 | O12: 3.7 | P12: 3.7 | Q12: 2.3814 | R12: 13.4814 | T12: 1.8 | U12: 1 | V12: 1.8 | W12: 1.26 | X12: 6.66 | AA12: 1 | AB12: =+INDEX(Sheet2!$C$11:$C$13,AA12) -> 19 | AC12: 2.4255 | AD12: 59.4255 | AG12: 1 | AI12: 1 | AJ12: =+INDEX(Sheet2!$G$11:$I$13,'Viljan tuotanto'!AG12,'Viljan tuotanto'!AI12) -> 10 | AK12: 1.26 | AL12: 31.26
C13: Lohko 8 | D13: 0 | E13: 0 | G13: 1 | H13: 0 | J13: =+INDEX(Sheet2!$C$5:$C$7,G13)*H13 -> 0 | K13: 0 | L13: 0 | N13: 0 | O13: 3.7 | P13: 3.7 | Q13: 0 | R13: 0 | T13: 1.8 | U13: 0 | V13: 1.8 | W13: 0 | X13: 0 | AA13: 3 | AB13: =+INDEX(Sheet2!$C$11:$C$13,AA13) -> 9 | AC13: 0 | AD13: 0 | AG13: 2 | AI13: 1 | AJ13: =+INDEX(Sheet2!$G$11:$I$13,'Viljan tuotanto'!AG13,'Viljan tuotanto'!AI13) -> 9 | AK13: 0 | AL13: 0
C14: Lohko 9 | D14: 0 | E14: 0 | G14: 1 | H14: 0 | J14: =+INDEX(Sheet2!$C$5:$C$7,G14)*H14 -> 0 | K14: 0 | L14: 0 | N14: 0 | O14: 3.7 | P14: 3.7 | Q14: 0 | R14: 0 | T14: 1.8 | U14: 0 | V14: 1.8 | W14: 0 | X14: 0 | AA14: 1 | AB14: =+INDEX(Sheet2!$C$11:$C$13,AA14) -> 19 | AC14: 0 | AD14: 0 | AG14: 2 | AI14: 1 | AJ14: =+INDEX(Sheet2!$G$11:$I$13,'Viljan tuotanto'!AG14,'Viljan tuotanto'!AI14) -> 9 | AK14: 0 | AL14: 0
C15: Lohko 10 | D15: 0 | E15: 0 | G15: 1 | H15: 0 | J15: =+INDEX(Sheet2!$C$5:$C$7,G15)*H15 -> 0 | K15: 0 | L15: 0 | N15: 0 | O15: 3.7 | P15: 3.7 | Q15: 0 | R15: 0 | T15: 1.8 | U15: 0 | V15: 1.8 | W15: 0 | X15: 0 | AA15: 1 | AB15: =+INDEX(Sheet2!$C$11:$C$13,AA15) -> 19 | AC15: 0 | AD15: 0 | AG15: 2 | AI15: 1 | AJ15: =+INDEX(Sheet2!$G$11:$I$13,'Viljan tuotanto'!AG15,'Viljan tuotanto'!AI15) -> 9 | AK15: 0 | AL15: 0
C16: Summa | E16: =+SUM(E6:E15) -> 24.9 | L16: =+SUM(L6:L15) -> 91.59 | R16: =+SUM(R6:R15) -> 130.49322 | X16: =+SUM(X6:X15) -> 65.61 | AD16: =+SUM(AD6:AD15) -> 434.69645 | AL16: =+SUM(AL6:AL15) -> 365.865
A20: Kuivaus | B20: Viljan keskisato kuivana | E20: 3500 | F20: kg/ha | G20: =+E20*E16 -> 87150
B21: Puintikosteus keskimäärin | E21: 20 | F21: %
B22: Sato | E22: =+E20*E16 -> 87150 | F22: kg
B23: Poistettava vesimäärä | E23: =+(E21/100-0.14)/(1-E21/100)*G20 -> 6536.25 | F23: kg vettä
B24: Öljyn kulutus | E24: =0.15*E23 -> 980.4375 | F24: l
E25: =+E24/E16 -> 39.375 | F25: l/ha
C27: Työ | E27: Määrä l | F27: Määrä l/ha
A28: TULOS | C28: Kylvömuokkaus | E28: =+L16 -> 91.59 | F28: =+E28/$E$16 -> 3.678313253
C29: Kylvölannoitus | E29: =+R16 -> 130.49322 | F29: =+E29/$E$16 -> 5.240691566
C30: Kasvinsuojelu | E30: =+X16 -> 65.61 | F30: 2.634939759
C31: Puinti | E31: =+AD16 -> 434.69645 | F31: 17.45768876
C32: Perusmuokkaus | E32: =+AL16 -> 365.865 | F32: 14.69337349
C33: Kuivaus | E33: =+E24 -> 980.4375 | F33: 39.375
C34: Yhteensä | E34: =+SUM(E28:E33) -> 2068.69217 | F34: 83.08000683
C37: Ohjelma laskee tilan polttoainekulutuksen arvion lohkoittain.
C38: Koska olosuhteet, kuljettajat ja säät vaihtelevat vuosittain,
C39: todellisissa kulutuksissa on usein melkoista vaihtelua.
C40: Tämä laskentaa antaa arvion, joka voi erota useita
C41: kymmeniä prosentteja todellisuudesta.

Sheet Sheet2
D2: Näillä luvuilla kulutukset arvioidaan. Vaihtamalla luvut saadaan erilailla laskettu tulos.
B3: Äestys
B4: Maalaji | C4: l/ha
B5: Kevyt | C5: 4.6
B6: Keskijäykkä | C6: 5.4
B7: Jäykkä | C7: 6.2
B9: Puinti
B10: Sato | C10: l/ha | E10: Muokkaus l/ha | G10: Kevyt | H10: Keskijäykkä | I10: Jäykkä
B11: Hyvä | C11: 19 | E11: Kyntö | G11: 10 | H11: 20 | I11: 30
B12: Keskinkertainen | C12: 14 | E12: Sänkim. kultiv. | G12: 9 | H12: 10 | I12: 11
B13: Heikko | C13: 9 | E13: Sänkim. lautas. | G13: 7.75 | H13: 8.5 | I13: 9.25

Sheet Sheet3
D9: 7 | E9: 10
D10: =+(E9-D9)/4 -> 0.75
D12: =+D9+D10 -> 7.75 | E12: =+D12+D10 -> 8.5 | F12: =+E12+D10 -> 9.25

Sheet Info
